Cogmind - Beta 15 @@@ ROGUE MODE // 2025.06.02 @ 19:38:08 Player: Nueadkie Result: Destroyed by JD-KUX(R) with Subdweller Laser Performance ------------- Evolutions (0) 0 Regions Visited (2) 400 Robots Destroyed (32) 160 Value Destroyed (523) 523 Prototype IDs (5) 100 Alien Tech Used (0) 0 Bonus (-11) -11 TOTAL SCORE: 1172 Bonus ------- Friendly Fire -11 Cogmind --------- Core Integrity 0/250 Matter 230/300 Energy 100/100 System Corruption 2% Temperature Cool (6) Movement Flying (200) Ox2 Location -10/Subcaves Parts ------- > --- POWER (1) -------- (None) > --- PROPULSION (2) --- Flight Unit > --- UTILITY (2) ------ Medium Storage Unit Signal Interpreter > --- WEAPON (2) ------- (None) > --- INVENTORY (10) --- Light Ion Engine Improved Terrain Scanner ECM Suite Heavy Assault Rifle Battle Rifle Multitool Mace Peak State ------------ > --- POWER ------------ Ion Engine > --- PROPULSION ------- Aluminum Leg Aluminum Leg > --- UTILITY ---------- Medium Storage Unit Improved Terrain Scanner > --- WEAPON ----------- Heavy Assault Rifle Heavy Assault Rifle > --- INVENTORY -------- Light Ion Engine Flight Unit Flight Unit Flight Unit Seismic Detector ECM Suite Medium Laser Grenade Launcher Mace [Rating: 12] Favorites ----------- Power Ion Engine Engine Ion Engine Propulsion Aluminum Leg Treads Light Treads Leg Aluminum Leg Flight Unit Flight Unit Utility Medium Storage Unit Device Improved Terrain Scanner Storage Medium Storage Unit Processor Signal Interpreter Weapon Heavy Assault Rifle Energy Gun Medium Laser Ballistic Gun Heavy Assault Rifle Launcher Grenade Launcher Impact Weapon Mace Build | -11 -10 -10 ------- Run | Yrd Mat Sub Slots Evolved . | . . . Power . | . . . Propulsion . | . . . Utility . | . . . Weapon . | . . . Parts Attached 21 | 9 9 3 Power 2 | 1 1 . Engine 2 | 1 1 . Core . | . . . Reactor . | . . . Propulsion 7 | 3 2 2 Treads 1 | 1 . . Leg 4 | 2 2 . Wheel . | . . . Hover . | . . . Flight 2 | . . 2 Utility 5 | 3 2 . Device 2 | 2 . . Storage 2 | 1 1 . Processor 1 | . 1 . Hackware . | . . . Protection . | . . . Artifact . | . . . Weapon 7 | 2 4 1 Energy Gun 2 | 2 . . Energy Cannon . | . . . Ballistic Gun 2 | . 2 . Ballistic Cannon . | . . . Launcher 2 | . 1 1 Special Weapon . | . . . Impact Weapon 1 | . 1 . Slashing Weapon . | . . . Piercing Weapon . | . . . Special Melee Weapon . | . . . Unidentified Prototypes . | . . . Corrupted Parts 1 | 1 . . System Corruption 1 | 1 . . Parts Lost 7 | . 1 6 Power 2 | . 1 1 Propulsion 3 | . . 3 Utility . | . . . Weapon 2 | . . 2 Highest Loss Streak 6 | . 1 6 To Critical Strikes . | . . . Average Backups 8 | 1 8 9 Power . | . 1 1 Propulsion 2 | . 3 2 Utility 1 | . 1 2 Weapon 3 | . 3 3 Tool/Special . | . . . Unused Backups 8 | . 3 5 Power 1 | . . 1 Propulsion 2 | . 2 . Utility 1 | . . 1 Weapon 3 | . 1 2 Tool/Special 1 | . . 1 Average Slot Usage (%) 96 | . 96 97 Engine 13 | . 13 13 Leg 27 | . 27 26 Device 5 | . 7 . Storage 14 | . 14 14 Processor 8 | . 6 14 Energy Gun 4 | . 5 . Ballistic Gun 17 | . 18 13 Launcher 3 | . . 14 Peak Build Rating 12 | 9 12 9 Average Rating 9 | 6 9 8 On Entrance 6 | . 9 9 Naked Turns . | . . . Heaviest Build 22 | 15 22 21 Greatest Support 20 | 20 20 20 Greatest Overweight (x) 2 | 1 2 2 Average Overweight (x) . | . . 1 Largest Inventory Capacity 10 | 8 10 10 Average Capacity 9 | 7 9 10 Most Carried 10 | 3 10 10 Average Carried 8 | 1 8 9 Final Capacity 10 | 8 10 10 Final Carried 10 | 3 10 7 Class Distribution -------------------- 100% | Mutant Dominant Class ---------------- Mutant | -10/Materials Mutant | -10/Subcaves Resources | -11 -10 -10 ----------- Run | Yrd Mat Sub Matter Collected 798 | 280 366 152 Remotely . | . . . Salvage Created 753 | 208 428 117 Parts 60 | 17 32 11 Haulers Intercepted 1 | . 1 . Recyclers Shooed 1 | 1 . . Parts Field Recycled . | . . . Retrieved Matter . | . . . Parts Self-Destructed 7 | . . 7 Prevented . | . . . Kills | -11 -10 -10 ------- Run | Yrd Mat Sub Combat Hostiles Destroyed 21 | . 14 7 Guns 15 | . 14 1 AOE 6 | . . 6 Classes Destroyed 9 | 3 4 2 Worker 1 | 1 . . Tunneler 5 | 5 . . Hauler 1 | . 1 . Recycler 1 | 1 . . Watcher 3 | . 3 . Swarmer 13 | . 9 4 Grunt 7 | . 5 2 Artisan 1 | . . 1 Subdweller 1 | . . 1 Best Kill Streak 6 | 3 6 4 Combat Bots Only 6 | . 6 4 Max Kills in Single Turn 3 | 1 2 3 Gunslinging 1 | . 1 . Exploded 3 | . . 3 Melee . | . . . Uniques/NPCs Destroyed . | . . . Combat | -11 -10 -10 -------- Run | Yrd Mat Sub Hostile Shots Fired 174 | . 96 78 Missed 57 | . 28 29 Hits 117 | . 68 49 Projectile 117 | . 68 49 Critical Strikes 1 | . . 1 Damage Taken 1203 | . 658 545 Core 262 | . 95 167 Absorbed by Shields . | . . . Regen/Repaired (Parts) 191 | . 191 . Core Remaining (%) 100 | 100 . . Volleys Fired 88 | 16 51 21 Largest 2 | 2 2 2 Hottest 90 | 90 90 60 Shots Fired 163 | 32 102 29 Gun 149 | 32 102 15 Cannon . | . . . Launcher 14 | . . 14 Special . | . . . Kinetic 93 | . 78 15 Thermal 28 | 16 12 . Explosive 14 | . . 14 Electromagnetic 28 | 16 12 . Robot Hit Streak 13 | 5 12 13 Robot Miss Streak 5 | 3 5 1 Penetration Max . | . . . Secondary Targets 2 | . 2 . Max Gunslinging Chain 1 | . 1 . Shots Hit Robots 94 | 18 55 21 Core Hits 46 | 7 23 16 Critical Kills . | . . . Critical Parts Destroyed . | . . . Critical Strikes 1 | . 1 . Burn 1 | . 1 . Melee Attacks 1 | . 1 . Impact 1 | . 1 . Slashing . | . . . Piercing . | . . . Sneak Attacks . | . . . Combat Hostiles . | . . . Follow-up Attacks . | . . . Damage Inflicted 1809 | 234 842 733 Guns 1260 | 234 842 184 Cannons . | . . . Explosions 549 | . . 549 Melee . | . . . Ramming . | . . . Kinetic 845 | . 661 184 Thermal 212 | 127 85 . Explosive 549 | . . 549 Electromagnetic 203 | 107 96 . Impact . | . . . Slashing . | . . . Piercing . | . . . Highest Corruption 2 | 1 2 2 Average Corruption 1 | 1 1 2 Corruption Purged . | . . . Corruption Blocked . | . . . Effects 14 | . 8 6 Message Errors 3 | . 1 2 Matter Fused 2 | . 2 . Heat Flow Errors 3 | . 3 . Energy Discharges 1 | . . 1 Parts Rejected 1 | . . 1 Data Loss (minor) 3 | . 2 1 Misfires 1 | . . 1 Overload Shots . | . . . Overflow Damage 25 | . . 25 Projectiles . | . . . Explosions 25 | . . 25 Melee . | . . . Knockbacks . | . . . Impact . | . . . Kinetic . | . . . Secondary . | . . . Self-Inflicted Damage 102 | . . 102 Shots 3 | . . 3 Rammed . | . . . Targets Rammed . | . . . Kicked . | . . . Crushed . | . . . Highest Temperature 232 | 210 232 4 Average Temperature 65 | 65 66 4 Received Heat Transfer 450 | . 210 240 Siege Activations . | . . . Martial Activations . | . . . Shielding Activations . | . . . Robots Disrupted . | . . . Combat Hostiles . | . . . Robots Corrupted . | . . . Combat Hostiles . | . . . Parts Fried . | . . . Impact Corruptions . | . . . Robots Melted . | . . . Combat Hostiles . | . . . Parts Melted 3 | 1 1 1 Heat Transferred 703 | 370 333 . Parts Sabotaged . | . . . Parts Stolen . | . . . Parts Stripped . | . . . Power Chain Reactions . | . . . Alert | -11 -10 -10 ------- Run | Yrd Mat Sub Maximum Alert Level . | . . . Low Security (%) 100 | 100 100 . Level 1 . | . . . Level 2 . | . . . Level 3 . | . . . Level 4 . | . . . Level 5 . | . . . High Security . | . . . Max Security . | . . . Peak Influence 158 | 5 158 . Initial . | . . . Average 72 | 2 84 . Influence Increases 614 | 35 404 175 Destroy 0b10 Robot/C 400 | . 280 120 Destroy 0b10 Robot/NC 55 | 35 20 . Destroy Leader 58 | . 48 10 Successful Hack 40 | . 40 . Disable Machine 15 | . 15 . Destroy Structure 1 | . 1 . Lose Combat Pursuer 45 | . . 45 Influence Decreases 559 | 35 404 120 Time Decay 489 | 35 394 60 Lost Part 70 | . 10 60 Squads Dispatched 1 | . 1 . Investigation 1 | . 1 . Extermination . | . . . Reinforcement . | . . . Assault . | . . . Garrison . | . . . Intercept . | . . . Searches Triggered . | . . . Construction Impeded . | . . . Haulers Reinforced . | . . . Active Scanning Responses . | . . . Cargo Convoy Interrupts . | . . . Stealth | -11 -10 -10 --------- Run | Yrd Mat Sub Distress Signals 2 | . 2 . Communications Jammed . | . . . Distress Signals . | . . . Times Spotted 31 | . 20 11 Peak Tracking Total 6 | . 6 6 Tactical Retreats 1 | . . 1 Traps | -11 -10 -10 ------- Run | Yrd Mat Sub Traps Triggered 3 | . 3 . Indirectly . | . . . Trap Hack Attempts . | . . . Triggered . | . . . Disarmed . | . . . Reprogrammed . | . . . Reused . | . . . Traps Extracted . | . . . Installed . | . . . Triggered . | . . . Machines | -11 -10 -10 ---------- Run | Yrd Mat Sub Machines Disabled 4 | . 1 3 Max in Single Turn 2 | . 1 2 Machines Repaired . | . . . Machines Dismantled . | . . . Machines Sabotaged . | . . . Overloaded Fab Kills . | . . . Hacking | -11 -10 -10 --------- Run | Yrd Mat Sub Machines Accessed 8 | . 8 . Terminals 6 | . 6 . Fabricators . | . . . Repair Stations 1 | . 1 . Recycling Units 1 | . 1 . Scanalyzers . | . . . Garrison Access . | . . . Total Hacks 33 | . 33 . Successful 19 | . 19 . Failed 13 | . 13 . Catastrophic . | . . . Database Lockouts 1 | . 1 . Manual 17 | . 17 . Terminals 27 | . 27 . Fabricators . | . . . Repair Stations 5 | . 5 . Recycling Units 1 | . 1 . Scanalyzers . | . . . Garrison Access . | . . . Terminal Hacks 9 | . 9 . Prototype ID Bank 3 | . 3 . Emergency Access Points 1 | . 1 . Locate Traps 1 | . 1 . Investigation Status 1 | . 1 . Hauler Manifests 1 | . 1 . Zone Layout 2 | . 2 . Fabricator Hacks . | . . . Repair Station Hacks 4 | . 4 . Scan Component 2 | . 2 . Repair 2 | . 2 . Recycling Unit Hacks 1 | . 1 . Report Inventory 1 | . 1 . Scanalyzer . | . . . Garrison Access Hacks . | . . . Unauthorized Hacks 5 | . 5 . Terminals 5 | . 5 . Botnet 5 | . 5 . Fabricators . | . . . Repair Stations . | . . . Recycling Units . | . . . Scanalyzers . | . . . Garrison Access . | . . . Data Cores Recovered . | . . . Used . | . . . Hacking Detections 5 | . 5 . Full Trace Events . | . . . Feedback Events . | . . . Feedback Blocked . | . . . Robot Schematics Acquired . | . . . Robots Built . | . . . Authchips . | . . . Time . | . . . Total Robot Build Rating . | . . . Part Schematics Acquired . | . . . Parts Built . | . . . Authchips . | . . . Time . | . . . Total Part Build Rating . | . . . Parts Repaired 2 | . 2 . Time 64 | . 64 . Parts Recycled . | . . . Recycled Matter . | . . . Retrieved Matter . | . . . Retrieved Components . | . . . Parts Scanalyzed . | . . . Part Schematics Acquired . | . . . Parts Damaged . | . . . Bothacking | -11 -10 -10 ------------ Run | Yrd Mat Sub Used RIF Installer . | . . . Robots Hacked . | . . . Non-combat . | . . . Combat . | . . . Robot Hacks Applied . | . . . Relay Couplers Released . | . . . Fabnet Peak Effective % . | . . . Robots Rewired . | . . . Allies Hacked . | . . . Hacks Repelled . | . . . Allies | -11 -10 -10 -------- Run | Yrd Mat Sub Total Allies . | . . . Largest Group . | . . . Highest-Rated Group . | . . . Highest-Rated Ally . | . . . Total Orders . | . . . Ally Attacks . | . . . Total Damage . | . . . Kills . | . . . Allies Corrupted . | . . . Allies Melted . | . . . Intel | -11 -10 -10 ------- Run | Yrd Mat Sub Active Infowar (turns) 658 | 114 544 . Terrain 546 | 2 544 . Seismic 112 | 112 . . Robot Analysis Total . | . . . Derelict Logs Recovered . | . . . Drone Launches . | . . . Drone Recoveries . | . . . Exploration | -11 -10 -10 ------------- Run | Yrd Mat Sub Turns Passed 1581 | 176 1025 380 Spaces Moved 835 | 92 577 166 Core 3 | 3 . . Treads 5 | 5 . . Legs 825 | 84 577 164 Wheels . | . . . Hover . | . . . Flight 2 | . . 2 Fastest Speed 50 | 50 120 190 Average Speed 150 | 120 144 190 Slowest Speed 260 | 160 260 200 Overloaded Moves . | . . . Propulsion Burnouts . | . . . Robots Hopped . | . . . Potential Cave-ins . | . . . Cave-ins Triggered . | . . . Exploration Rate (%) 34 | 4 84 14 Regions Visited 2 Branch Regions 1 Pre-discovered Areas . | . . . Known Exits Taken 1 | . 1 . Unknown Exits Taken 1 | 1 . . Scrap Searched 1 | . . 1 Spaces Dug . | . . . Terrain Destroyed 74 | . . 74 Melee . | . . . Projectile . | . . . AOE 74 | . . 74 Terrain Rammed . | . . . Walls Destroyed . | . . . Machines Disabled . | . . . Actions | -11 -10 -10 --------- Run | Yrd Mat Sub Total 989 | 120 666 203 Wait 14 | . 5 9 Move 833 | 91 576 166 Hop . | . . . Pick Up 15 | 3 10 2 Fast Attach 15 | 8 7 . Attach 3 | . . 3 Detach . | . . . Swap 9 | 1 8 . Drop 11 | 1 8 2 Fire 88 | 16 51 21 Melee 1 | . 1 . Ram . | . . . Kick . | . . . Crush . | . . . Escape Stasis . | . . . Rewire . | . . . Trap . | . . . Miscellaneous . | . . . Route ------- -11/Scrapyard -10/Materials (discovered 3 exits: *Mat / *Min / *Sub) -10/Subcaves (discovered 1 exit: [*Rec]) History --------- Turn | Location | Event 9 | -11/Scrapyard | Discovered new exit (range 16) 177 | -11/Scrapyard | Entered Materials 309 | -10/Materials | Build established: Mutant 829 | -10/Materials | Repaired Hvy. Assault Rifle? 869 | -10/Materials | Central database locked down 877 | -10/Materials | Discovered new exit (range 7) 883 | -10/Materials | Identified exit to Materials 1027 | -10/Materials | Repaired Hvy. Assault Rifle 1072 | -10/Materials | Discovered new exit (range 14) 1096 | -10/Materials | Identified exit to Mines 1184 | -10/Materials | Discovered new exit (range 11) 1199 | -10/Materials | Identified exit to Subcaves 1202 | -10/Materials | Entered Subcaves 1203 | -10/Subcaves | Approached by a straggling Scientist 1561 | -10/Subcaves | Core integrity fell below 50% 1563 | -10/Subcaves | Discovered new exit (range 9) 1580 | -10/Subcaves | Core integrity fell below 20% 1582 | -10/Subcaves | Destroyed by JD-KUX(R) with Subdweller Laser Last Messages --------------- 01563_ EXIT=FOUND 01563_ S-10 Pest destroyed. 01566_ The unstable cave ceiling collapses. 01567_ Flight Unit fries itself beyond repair. 01567_ Aluminum Leg destroyed. 01569_ System corrupted: Hvy. Assault Rifle rejected. 01569_ The unstable cave ceiling collapses. 01569_ Lgt. Assault Rifle crushed. 01569_ Aluminum Leg destroyed. 01570_ S-10 Pest destroyed. 01570_ Grenade Launcher destroyed. 01570_ Destroyed Grenade Launcher. 01574_ Lgt. Ion Engine fries itself beyond repair. 01575_ Lgt. Assault Rifle fries itself beyond repair. 01577_ Machine disabled. 01577_ Flight Unit destroyed. 01579_ Grenade Launcher destroyed. 01579_ Destroyed Grenade Launcher. 01579_ Ion Engine destroyed. 01581_ Acquired 4 matter. Map ----- +----------------------------------------------------+ | ?????????????????????????????????????????????????? | | ?????????????????????????????????????????????????? | | #?#####??????????????????????????????????????????? | | ### ##????##???????????????????????????????????? | | #### #???????????????????????????????????? | | ????????????????????????????????????? | | ?????????????????????????????????????? | | ???????????????????????????????????????? | | # #?????????????????????????????????????????? | | # #??????????????????????????????????????????? | | # ^ ##?????????????????????????????????????????? | | ##?????????????????#??????????????????????? | | % ##???????????????# #?????????????????????? | | #??????????????? ?????????????????????? | | #??????????????? "?""""""""????????????? | | #### #??????????????? "?"""" "????????????? | | ??## #??????????????? ## "???????????? | | ?## ####?????????????## ???????????? | | ## ##?????????????### < ? ??????????? | | # ######????????#" ???????????? | | # ##???????#" ?????????????? | | # ######??#" t t # ???????????????? | | ^ # # ##?# #????????????????? | | ## ### #?# #????????????????? | | #?####?# #?#" #????????????????? | | #???????# ### #??# @ #???????????????????? | | ??????# ##?# ##### [ #???????????????????? | | ???????# ##??# ## ##???????????????????? | | ?????# #???##&"# #" ??????????????????? | | ????# ????########" R ???????????????? | | ???# ???????????#" ## ?????????????? | | ??# ### ???????????# #? ##????????????? | | ? ??####??????????# ## ?? "##?????????????? | | ?# ???????????????? ##?##?? #??????????????? | | ?## ?????????????????#???????? #??????????????? | | ??#####??????????????????????????? ??????????????? | | ??????????????????????????????????? ?????????????? | | ?????????????????????????????????????????????????? | | ?????????????????????????????????????????????????? | | ?????????????????????????????????????????????????? | | ?????????????????????????????????????????????????? | | ?????????????????????????????????????????????????? | | ?????????????????????????????????????????????????? | | ?????????????????????????????????????????????????? | | ?????????????????????????????????????????????????? | | ?????????????????????????????????????????????????? | | ?????????????????????????????????????????????????? | | ?????????????????????????????????????????????????? | | ?????????????????????????????????????????????????? | | ?????????????????????????????????????????????????? | +----------------------------------------------------+ Best States ------------- Heat Dissipation 25 Energy Generation 10 Energy Capacity 250 Matter Stores 300 Matter Capacity 300 Sight Range 16 Terrain Scan Range 16 Terrain Scan Density 10 Evasion (%) 55 Recoil Reduction 1 Item Schematics ----------------- None Robot Schematics ------------------ None Fabricated ------------ Nothing Repaired ---------- Hvy. Assault Rifle | 4% | -10/Materials Hvy. Assault Rifle | 29% | -10/Materials Alien Tech Used ----------------- None Achievements -------------- None Challenges ------------ None Game ------ Seed WardroneCentriumActivator Manual? 0 Play Time 00:21:04 Cumulative 22.8 hours Start 2025.06.02 @ 19:15:29 End 2025.06.02 @ 19:38:08 Sessions 1 Manual Loads 0 Difficulty Rogue Special Mode None Game No. 33 Rogue 33 Adventurer 0 Explorer 0 Win Type - Total 0 Types 0/0/0/0/0/0/0/0/0/0 Lore% 21 Gallery% 21 Achievement% 21 Wizard Run 0 Options --------- Layout 0 ASCII 0 Keyboard 0 Movement Vi Keybinds 0 Fullscreen 1 Font 36/Smallcaps Map View 76x50 Zoom Use 0% Tactical HUD 1 Map Filters NONE Filters NONE Steam 1 RUN: 23f7d6db-ff01-42b3-b186-53ef198e7693